fUSD/lending_fUSD_20251129
["ID","MTS","AMOUNT","RATE_DAILY","PERIOD"]
[395080122,1764408666949,-195.97426,0.00015796,2]
[395080123,1764408666958,-195.97426,0.00015796,2]
[395080124,1764408666968,-151.0,0.00015796,2]
[395080125,1764408666977,-151.0,0.00015796,2]
[395080126,1764408666987,-151.0,0.00015796,2]
[395080127,1764408666996,-176.353625,0.00015796,2]
[395080128,1764408667006,-157.376194,0.00015796,2]
[395080129,1764408667016,-151.0,0.00015796,2]
[395080130,1764408667026,-151.0,0.00015796,2]
[395080131,1764408667035,-151.0,0.00015796,2]
[395080132,1764408667045,-151.0,0.00015796,2]
[395080133,1764408667054,-175.773884,0.00015796,2]
[395080134,1764408667063,-154.951959,0.00015796,2]
[395080135,1764408667076,-184.488376,0.00015796,2]
[395080136,1764408667085,-151.0,0.00015796,2]
[395080137,1764408667095,-158.052934,0.00015796,2]
[395080138,1764408667105,-151.0,0.00015796,2]
[395080139,1764408667115,-151.0,0.00015796,2]
[395080140,1764408667125,-171.847059,0.00015796,2]
[395080141,1764408667136,-151.0,0.00015796,2]
[395080142,1764408667146,-151.0,0.00015796,2]
[395080143,1764408667156,-151.0,0.00015796,2]
[395080144,1764408667166,-151.0,0.00015796,2]
[395080145,1764408667177,-151.0,0.00015796,2]
[395080146,1764408667188,-151.0,0.00015796,2]
[395080147,1764408667199,-151.0,0.00015796,2]
[395080148,1764408667210,-151.0,0.00015796,2]
[395080149,1764408667220,-151.0,0.00015796,2]
[395080150,1764408667231,-151.0,0.00015796,2]
[395080151,1764408667243,-196.212564,0.00015796,2]
[395080152,1764408667254,-151.0,0.00015796,2]
[395080153,1764408667268,-151.0,0.00015796,2]
[395080154,1764408667278,-151.0,0.00015796,2]
[395080155,1764408667288,-151.0,0.00015796,2]
[395080156,1764408667299,-276.442429,0.00015796,2]
[395080157,1764408667309,-151.0,0.00015796,2]
[395080158,1764408667319,-151.0,0.00015796,2]
[395080159,1764408667329,-151.0,0.00015796,2]
[395080160,1764408667340,-151.0,0.00015796,2]
[395080161,1764408667350,-151.0,0.00015796,2]
[395080162,1764408667360,-151.0,0.00015796,2]
[395080163,1764408667370,-151.0,0.00015796,2]
[395080164,1764408667380,-213.92908,0.00015796,2]
[395080165,1764408667390,-151.0,0.00015796,2]
[395080166,1764408667402,-151.0,0.00015796,2]
[395080167,1764408667412,-151.0,0.00015796,2]
[395080168,1764408667422,-151.0,0.00015796,2]
[395080169,1764408667432,-151.0,0.00015796,2]
[395080170,1764408667442,-151.0,0.00015796,2]
[395080171,1764408667452,-151.0,0.00015796,2]
[395080172,1764408667465,-151.0,0.00015796,2]
[395080173,1764408667475,-151.0,0.00015796,2]
[395080174,1764408667485,-151.0,0.00015796,2]
[395080175,1764408667495,-151.0,0.00015796,2]
[395080176,1764408667505,-233.207642,0.00015796,2]
[395080177,1764408667515,-151.0,0.00015796,2]
[395080178,1764408667525,-151.0,0.00015796,2]
[395080179,1764408667535,-151.0,0.00015796,2]
[395080180,1764408667545,-151.0,0.00015796,2]
[395080181,1764408667555,-151.0,0.00015796,2]
[395080182,1764408667565,-151.0,0.00015796,2]
[395080183,1764408667575,-151.587834,0.00015796,2]
[395080184,1764408667585,-234.203899,0.00015796,2]
[395080185,1764408667595,-234.203899,0.00015796,2]
[395080186,1764408667605,-234.203899,0.00015796,2]
[395080187,1764408667615,-309.020769,0.00015796,2]
[395080188,1764408667625,-309.020769,0.00015796,2]
[395080189,1764408667635,-309.020769,0.00015796,2]
[395080190,1764408667645,-309.020769,0.00015796,2]
[395080191,1764408667655,-151.0,0.00015796,2]
[395080192,1764408667666,-309.020769,0.00015796,2]
[395080193,1764408667676,-151.0,0.00015796,2]
[395080194,1764408667686,-309.020769,0.00015796,2]
[395080195,1764408667696,-151.0,0.00015796,2]
[395080196,1764408667706,-309.020769,0.00015796,2]
[395080197,1764408667716,-151.0,0.00015796,2]
[395080198,1764408667725,-151.0,0.00015796,2]
[395080199,1764408667735,-309.020769,0.00015796,2]
[395080200,1764408667745,-151.0,0.00015796,2]
[395080201,1764408667755,-151.0,0.00015796,2]
[395080202,1764408667765,-309.020769,0.00015796,2]
[395080203,1764408667775,-151.0,0.00015796,2]
[395080204,1764408667785,-309.020769,0.00015796,2]
[395080205,1764408667794,-151.0,0.00015796,2]
[395080206,1764408667804,-151.0,0.00015796,2]
[395080207,1764408667814,-309.020769,0.00015796,2]
[395080208,1764408667823,-151.0,0.00015796,2]
[395080209,1764408667833,-151.0,0.00015796,2]
[395080210,1764408667845,-151.0,0.00015796,2]
[395080211,1764408667854,-309.020769,0.00015796,2]
[395080212,1764408667864,-151.0,0.00015796,2]
[395080213,1764408667883,-151.0,0.00015796,2]
[395080214,1764408667893,-309.020769,0.00015796,2]
[395080215,1764408667903,-309.020769,0.00015796,2]
[395080216,1764408667913,-151.0,0.00015796,2]
[395080217,1764408667923,-309.020769,0.00015796,2]
[395080218,1764408667933,-151.0,0.00015796,2]
[395080219,1764408667943,-309.020769,0.00015796,2]
[395080220,1764408667953,-309.020769,0.00015796,2]
[395080221,1764408667962,-309.020769,0.00015796,2]
[395080222,1764408667972,-309.020769,0.00015796,2]
[395080223,1764408667982,-309.020773,0.00015796,2]
[395080224,1764408667993,-247.856196,0.00015796,2]
[395080225,1764408668003,-247.856196,0.00015796,2]
[395080226,1764408668013,-247.856196,0.00015796,2]
[395080227,1764408668034,-247.856196,0.00015796,2]
[395080228,1764408668045,-247.856196,0.00015796,2]
[395080229,1764408668055,-247.856196,0.00015796,2]
[395080230,1764408668066,-247.856196,0.00015796,2]
[395080231,1764408668076,-247.856196,0.00015796,2]
[395080232,1764408668087,-247.856196,0.00015796,2]
[395080233,1764408668098,-247.856196,0.00015796,2]
[395080234,1764408668108,-247.856196,0.00015796,2]
[395080235,1764408668118,-247.856196,0.00015796,2]
[395080236,1764408668128,-247.856196,0.00015796,2]
[395080237,1764408668139,-247.856196,0.00015796,2]
[395080238,1764408668150,-247.856196,0.00015796,2]
[395080239,1764408668160,-247.856196,0.00015796,2]
[395080240,1764408668171,-247.856196,0.00015796,2]
[395080241,1764408668182,-247.856196,0.00015796,2]
[395080242,1764408668193,-247.856196,0.00015796,2]
[395080243,1764408668204,-247.856198,0.00015796,2]
[395080244,1764408668215,-234.506135,0.00015796,2]
[395080245,1764408668226,-234.506135,0.00015796,2]
[395080246,1764408668237,-234.506135,0.00015796,2]
[395080247,1764408668247,-234.506135,0.00015796,2]
[395080248,1764408668258,-234.506135,0.00015796,2]
[395080249,1764408668268,-234.506135,0.00015796,2]
[395080250,1764408668278,-234.506135,0.00015796,2]
[395080251,1764408668289,-151.0,0.00015796,2]
[395080252,1764408668300,-234.506135,0.00015796,2]
[395080253,1764408668310,-151.0,0.00015796,2]
[395080254,1764408668322,-234.506135,0.00015796,2]
[395080255,1764408668332,-151.0,0.00015796,2]
[395080256,1764408668343,-234.506135,0.00015796,2]
[395080257,1764408668354,-176.208337,0.00015796,2]
[395080258,1764408668365,-234.506135,0.00015796,2]
[395080259,1764408668379,-234.506135,0.00015796,2]
[395080260,1764408668390,-234.506135,0.00015796,2]
[395080261,1764408668402,-234.506135,0.00015796,2]
[395080262,1764408668413,-234.506135,0.00015796,2]
[395080263,1764408668424,-234.506135,0.00015796,2]
[395080264,1764408668434,-234.506135,0.00015796,2]
[395080265,1764408668445,-234.506135,0.00015796,2]
[395080266,1764408668456,-234.506135,0.00015796,2]
[395080267,1764408668467,-234.50614,0.00015796,2]
[395080268,1764408668478,-151.0,0.00015796,2]
[395080269,1764408668489,-151.0,0.00015796,2]
[395080270,1764408668500,-151.0,0.00015796,2]
[395080271,1764408668511,-151.0,0.00015796,2]
[395080272,1764408668522,-151.0,0.00015796,2]
[395080273,1764408668533,-151.0,0.00015796,2]
[395080274,1764408668545,-151.0,0.00015796,2]
[395080275,1764408668556,-186.1684,0.00015796,2]
[395080276,1764408668572,-151.0,0.00015796,2]
[395080277,1764408668583,-151.0,0.00015796,2]
[395080278,1764408668594,-151.0,0.00015796,2]
[395080279,1764408668605,-151.0,0.00015796,2]
[395080280,1764408668617,-151.0,0.00015796,2]
[395080281,1764408668627,-151.0,0.00015796,2]
[395080282,1764408668638,-151.0,0.00015796,2]
[395080283,1764408668649,-151.0,0.00015796,2]
[395080284,1764408668659,-151.0,0.00015796,2]
[395080285,1764408668670,-151.0,0.00015796,2]
[395080286,1764408668682,-151.0,0.00015796,2]
[395080287,1764408668692,-151.0,0.00015796,2]
[395080288,1764408668703,-151.0,0.00015796,2]
[395080289,1764408668714,-151.0,0.00015796,2]
[395080290,1764408668726,-151.0,0.00015796,2]
[395080291,1764408668737,-187.934274,0.00015796,2]
[395080292,1764408668748,-151.0,0.00015796,2]
[395080293,1764408668758,-151.0,0.00015796,2]
[395080294,1764408668769,-151.0,0.00015796,2]
[395080295,1764408668779,-151.0,0.00015796,2]
[395080296,1764408668790,-151.0,0.00015796,2]
[395080297,1764408668801,-151.0,0.00015796,2]
[395080298,1764408668812,-151.0,0.00015796,2]
[395080299,1764408668823,-151.0,0.00015796,2]
[395080300,1764408668834,-153.379844,0.00015796,2]
[395080301,1764408668847,-156.370016,0.00015796,2]
[395080302,1764408668858,-151.0,0.00015796,2]
[395080303,1764408668869,-151.0,0.00015796,2]
[395080304,1764408668880,-151.0,0.00015796,2]
[395080305,1764408668890,-151.0,0.00015796,2]
[395080306,1764408668901,-151.0,0.00015796,2]
[395080307,1764408668912,-151.0,0.00015796,2]
[395080308,1764408668926,-151.0,0.00015796,2]
[395080309,1764408668937,-151.0,0.00015796,2]
[395080310,1764408668948,-151.0,0.00015796,2]
[395080311,1764408668959,-151.0,0.00015796,2]
[395080312,1764408668969,-166.556837,0.00015796,2]
[395080313,1764408668980,-151.0,0.00015796,2]
[395080314,1764408668991,-590.01954,0.00015796,2]
[395080315,1764408669002,-590.01954,0.00015796,2]
[395080316,1764408669012,-590.01954,0.00015796,2]
[395080317,1764408669023,-590.01954,0.00015796,2]
[395080318,1764408669034,-590.01954,0.00015796,2]
[395080319,1764408669044,-590.01954,0.00015796,2]
[395080320,1764408669055,-151.0,0.00015796,2]
[395080321,1764408669066,-151.0,0.00015796,2]
[395080322,1764408669077,-590.01954,0.00015796,2]
[395080323,1764408669089,-151.0,0.00015796,2]
[395080324,1764408669100,-590.01954,0.00015796,2]
[395080325,1764408669113,-590.01954,0.00015796,2]
[395080326,1764408669123,-151.0,0.00015796,2]
[395080327,1764408669134,-151.0,0.00015796,2]
[395080328,1764408669144,-590.01954,0.00015796,2]
[395080329,1764408669156,-151.0,0.00015796,2]
[395080330,1764408669167,-590.01954,0.00015796,2]
[395080331,1764408669177,-590.019535,0.00015796,2]
[395080332,1764408669188,-174.537637,0.00015796,2]
[395080333,1764408669198,-174.537637,0.00015796,2]
[395080334,1764408669209,-174.537637,0.00015796,2]
[395080335,1764408669221,-174.537637,0.00015796,2]
[395080336,1764408669232,-174.537637,0.00015796,2]
[395080337,1764408669243,-174.537637,0.00015796,2]
[395080338,1764408669254,-174.537637,0.00015796,2]
[395080339,1764408669265,-174.537637,0.00015796,2]
[395080340,1764408669278,-174.537637,0.00015796,2]
[395080341,1764408669289,-151.0,0.00015796,2]
[395080342,1764408669308,-151.0,0.00015796,2]
[395080343,1764408669320,-151.0,0.00015796,2]
[395080344,1764408669333,-174.537637,0.00015796,2]
[395080345,1764408669345,-174.537637,0.00015796,2]
[395080346,1764408669357,-174.537635,0.00015796,2]
[395080347,1764408669369,-151.0,0.00015796,2]
[395080348,1764408669380,-151.0,0.00015796,2]
[395080349,1764408669392,-151.0,0.00015796,2]
[395080350,1764408669403,-151.0,0.00015796,2]
[395080351,1764408669414,-151.0,0.00015796,2]
[395080352,1764408669428,-151.0,0.00015796,2]
[395080353,1764408669822,-248.795268,0.00015796,2]
[395080354,1764408669834,-151.0,0.00015796,2]
[395080355,1764408669844,-248.795268,0.00015796,2]
[395080356,1764408669855,-246.846087,0.00015796,2]
[395080357,1764408669865,-248.795268,0.00015796,2]
[395080358,1764408669875,-248.795268,0.00015796,2]
[395080359,1764408669884,-248.795268,0.00015796,2]
[395080360,1764408669894,-248.795268,0.00015796,2]
[395080361,1764408669904,-248.795268,0.00015796,2]
[395080362,1764408669914,-248.795268,0.00015796,2]
[395080363,1764408669925,-248.795268,0.00015796,2]
[395080364,1764408669935,-248.795268,0.00015796,2]
[395080365,1764408669944,-248.795268,0.00015796,2]
[395080366,1764408669954,-248.795276,0.00015796,2]
[395080367,1764408669965,-356.111319,0.00015796,2]
[395080368,1764408669975,-356.111319,0.00015796,2]
[395080369,1764408669985,-356.111319,0.00015796,2]
[395080370,1764408669994,-356.111319,0.00015796,2]
[395080371,1764408670004,-356.111319,0.00015796,2]
[395080372,1764408670013,-151.0,0.00015796,2]
[395080373,1764408670023,-356.111319,0.00015796,2]
[395080374,1764408670032,-151.0,0.00015796,2]
[395080375,1764408670042,-151.0,0.00015796,2]
[395080376,1764408670052,-356.111319,0.00015796,2]
[395080377,1764408670062,-356.111319,0.00015796,2]
[395080378,1764408670072,-356.111319,0.00015796,2]
[395080379,1764408670081,-177.989604,0.00015796,2]
[395080380,1764408670092,-356.111319,0.00015796,2]
[395080381,1764408670101,-356.111319,0.00015796,2]
[395080382,1764408670111,-356.111322,0.00015796,2]
[395080383,1764408670122,-151.0,0.00015796,2]
[395080384,1764408670132,-151.0,0.00015796,2]
[395080385,1764408670141,-151.0,0.00015796,2]
[395080386,1764408670151,-151.0,0.00015796,2]
[395080387,1764408670160,-151.0,0.00015796,2]
[395080388,1764408670170,-200.983534,0.00015796,2]
[395080389,1764408670179,-151.0,0.00015796,2]
[395080390,1764408670189,-151.0,0.00015796,2]
[395080391,1764408670198,-151.0,0.00015796,2]
[395080392,1764408670208,-151.0,0.00015796,2]
[395080393,1764408670218,-151.0,0.00015796,2]
[395080394,1764408670228,-177.987795,0.00015796,2]
[395080395,1764408670238,-151.0,0.00015796,2]
[395080396,1764408670248,-151.0,0.00015796,2]
[395080397,1764408670258,-412.818729,0.00015796,2]
[395080398,1764408670267,-412.818729,0.00015796,2]
[395080399,1764408670283,-151.0,0.00015796,2]
[395080400,1764408670294,-412.818729,0.00015796,2]
[395080401,1764408670303,-151.0,0.00015796,2]
[395080402,1764408670314,-412.818729,0.00015796,2]
[395080403,1764408670324,-151.0,0.00015796,2]
[395080404,1764408670335,-412.818729,0.00015796,2]
[395080405,1764408670345,-151.0,0.00015796,2]
[395080406,1764408670355,-412.818729,0.00015796,2]
[395080407,1764408670365,-151.0,0.00015796,2]
[395080408,1764408670375,-412.818729,0.00015796,2]
[395080409,1764408670385,-187.167848,0.00015796,2]
[395080410,1764408670395,-412.818737,0.00015796,2]
[395080411,1764408670406,-151.0,0.00015796,2]
[395080412,1764408670416,-151.0,0.00015796,2]
[395080413,1764408670426,-151.0,0.00015796,2]
[395080414,1764408670436,-151.0,0.00015796,2]
[395080415,1764408670446,-151.0,0.00015796,2]
[395080416,1764408670456,-151.0,0.00015796,2]
[395080417,1764408670466,-151.0,0.00015796,2]
[395080418,1764408670475,-151.0,0.00015796,2]
[395080419,1764408670485,-151.0,0.00015796,2]
[395080420,1764408670495,-264.893924,0.00015796,2]
[395080421,1764408670504,-151.0,0.00015796,2]
[395080422,1764408670514,-241.438969,0.00015796,2]
[395080423,1764408670524,-241.438969,0.00015796,2]
[395080424,1764408670533,-241.438969,0.00015796,2]
[395080425,1764408670543,-241.438971,0.00015796,2]
[395080426,1764408670553,-151.0,0.00015796,2]
[395080427,1764408670562,-337.882814,0.00015796,2]
[395080428,1764408670573,-337.882814,0.00015796,2]
[395080429,1764408670583,-151.0,0.00015796,2]
[395080430,1764408670592,-337.882814,0.00015796,2]
[395080431,1764408670602,-337.882824,0.00015796,2]
[395080432,1764408670611,-151.0,0.00015796,2]
[395080433,1764408670620,-151.0,0.00015796,2]
[395080434,1764408670631,-173.443704,0.00015796,2]
[395080435,1764408670643,-1832.0,0.00015798,2]
[395080436,1764408670653,-669.83921,0.0001581,2]
[395080437,1764408670663,-327.0,0.00015829,2]
[395080438,1764408670674,-621.0,0.00015851,2]
[395080439,1764408670683,-773.0,0.0001586,2]
[395080440,1764408670693,-8609.96436146,0.00015868,2]
[395080441,1764408670702,-621.0,0.00015876,2]
[395080442,1764408670711,-916.0,0.00015891,2]
[395080443,1764408670721,-500.0,0.00015899,2]
[395080444,1764408670731,-500.0,0.00015899,2]
[395080445,1764408670741,-1000.0,0.000159,2]
[395080446,1764408670752,-1000.0,0.000159,2]
[395080447,1764408670763,-1429.26164855,0.000159,7]
[395080448,1764408670774,-221.0,0.000159,2]
[395080449,1764408670784,-1185.31971642,0.00015901,2]
[395080450,1764408670795,-6379.39809852,0.00015905,2]
[395080451,1764408670805,-819.0,0.00015922,2]
[395080452,1764408670820,-621.0,0.0001593,2]
[395080453,1764408670830,-669.83922,0.0001594,2]
[395080454,1764408670840,-1514.0,0.00015952,2]
[395080455,1764408670854,-500.0,0.00015972,2]
[395080456,1764408670865,-7060.0,0.00015973,2]
[395080457,1764408670875,-500.0,0.00015973,2]
[395080458,1764408670885,-500.0,0.00015973,2]
[395080459,1764408670895,-500.0,0.00015973,2]
[395080460,1764408670905,-500.0,0.00015973,2]
[395080461,1764408670915,-214.54087661,0.00015973,2]
[395080462,1764408670925,-500.76126021,0.00015973,2]
[395080463,1764408670935,-500.0,0.00015973,2]
[395080464,1764408670945,-500.0,0.00015973,2]
[395080465,1764408670955,-500.0,0.00015973,2]
[395080466,1764408670964,-500.0,0.00015973,2]
[395080467,1764408670974,-200.0,0.00015973,2]
[395080468,1764408670984,-150.0,0.00015973,2]
[395080469,1764408670994,-152.79299703,0.00015973,2]
[395080470,1764408671004,-151.92540351,0.00015973,2]
[395080471,1764408671013,-150.0,0.00015973,2]
[395080472,1764408671025,-150.0,0.00015973,2]
[395080473,1764408671036,-199.28004944,0.00015973,2]
[395080474,1764408671047,-155.29376756,0.00015973,2]
[395080475,1764408671057,-151.91866068,0.00015973,2]
[395080476,1764408671067,-151.0,0.00015973,2]
[395080477,1764408671077,-151.0,0.00015973,2]
[395080478,1764408671087,-151.0,0.00015973,2]
[395080479,1764408671097,-151.0,0.00015973,2]
[395080480,1764408671107,-151.0,0.00015973,2]
[395080481,1764408671117,-151.0,0.00015973,2]
[395080482,1764408671126,-266.029318,0.00015973,2]
[395080483,1764408671138,-151.0,0.00015973,2]
[395080484,1764408671148,-151.0,0.00015973,2]
[395080485,1764408671157,-151.0,0.00015973,2]
[395080486,1764408671167,-151.0,0.00015973,2]
[395080487,1764408671177,-151.0,0.00015973,2]
[395080488,1764408671187,-151.0,0.00015973,2]
[395080489,1764408671201,-151.0,0.00015973,2]
[395080490,1764408671213,-151.0,0.00015973,2]
[395080491,1764408671222,-190.827265,0.00015973,2]
[395080492,1764408671233,-151.0,0.00015973,2]
[395080493,1764408671243,-151.0,0.00015973,2]
[395080494,1764408671253,-151.0,0.00015973,2]
[395080495,1764408671264,-151.0,0.00015973,2]
[395080496,1764408671274,-151.0,0.00015973,2]
[395080497,1764408671285,-151.0,0.00015973,2]
[395080498,1764408671295,-242.26997,0.00015973,2]
[395080499,1764408671306,-151.0,0.00015973,2]
[395080500,1764408671316,-162.670331,0.00015973,2]
[395080501,1764408671328,-195.97426,0.00015973,2]
[395080502,1764408671338,-195.97426,0.00015973,2]
[395080503,1764408671348,-195.97426,0.00015973,2]
[395080504,1764408671358,-195.97426,0.00015973,2]
[395080505,1764408671368,-195.97426,0.00015973,2]
[395080506,1764408671378,-195.97426,0.00015973,2]
[395080507,1764408671388,-195.97426,0.00015973,2]
[395080508,1764408671398,-195.974268,0.00015973,2]
[395080509,1764408671408,-1154.0,0.00015973,2]
[395080510,1764408671419,-500.0,0.00015973,2]
[395080511,1764408671430,-500.0,0.00015973,2]
[395080512,1764408671441,-1471.0,0.00015973,2]
[395080513,1764408671451,-1008.0,0.00015973,2]
[395080514,1764408671461,-500.0,0.00015973,2]
[395080515,1764408671470,-735.0,0.00015973,2]
[395080516,1764408671480,-500.0,0.00015973,2]
[395080517,1764408671490,-295.07806121,0.00015973,2]
[395080518,1764408671501,-150.0,0.00015973,2]
[395080519,1764408671514,-500.0,0.00015973,2]
[395080520,1764408671524,-500.0,0.00015973,2]
[395080521,1764408671535,-150.0,0.00015973,2]
[395080522,1764408671545,-500.0,0.00015973,2]
[395080523,1764408671554,-150.0,0.00015973,2]
[395080524,1764408671568,-500.0,0.00015973,2]
[395080525,1764408671579,-500.0,0.00015973,2]
[395080526,1764408671588,-150.0,0.00015973,2]
[395080527,1764408671598,-500.0,0.00015973,2]
[395080528,1764408671608,-1055.31608171,0.00015973,2]
[395080529,1764408671617,-225.49539982,0.00015979,2]
[395080530,1764408671626,-1714.0,0.00015983,2]
[395080531,1764408671635,-322.89898713,0.0001599,2]
[395080532,1764408671645,-500.0,0.00015999,2]
[395080533,1764408671654,-500.0,0.00015999,2]
[395080534,1764408671663,-151.0,0.00015999,2]
[395080535,1764408671672,-151.0,0.00015999,2]
[395080536,1764408671682,-500.0,0.00015999,2]
[395080537,1764408671691,-500.0,0.00015999,2]
[395080538,1764408671700,-544.34192817,0.00015999,2]
[395080539,1764408671711,-500.0,0.00015999,2]
[395080540,1764408671722,-500.0,0.00015999,2]
[395080541,1764408671733,-500.0,0.00015999,2]
[395080542,1764408671743,-500.0,0.00015999,3]
[395080543,1764408671754,-500.0,0.00015999,4]
[395080544,1764408671765,-500.0,0.00015999,2]
[395080545,1764408671776,-500.0,0.00015999,2]
[395080546,1764408671786,-500.0,0.00015999,2]
[395080547,1764408671795,-272356.15012832,0.00016,4]
[395080548,1764408671806,-3393.19598252,0.00016,2]
[395080549,1764408671816,-600.0,0.00016,2]
[395080550,1764408671825,-159.29,0.00016,2]
[395080551,1764408671835,-182972.69136404,0.00016,4]
[395080552,1764408671847,-150.0,0.00016001,2]
[395080553,1764408671856,-621.0,0.00016007,2]
[395080554,1764408671867,-723.0,0.0001601,2]
[395080555,1764408671876,-1258.0,0.0001601,2]
[395080556,1764408671887,-1193.0,0.0001601,2]
[395080557,1764408671897,-909.0,0.0001601,2]
[395080558,1764408671907,-610.0,0.0001601,2]
[395080559,1764408671918,-1603.0,0.0001601,2]
[395080560,1764408671928,-2812.74911743,0.00016012,2]
[395080561,1764408671938,-500.0,0.00016014,2]
[395080562,1764408671950,-8609.96436146,0.00016015,2]
[395080563,1764408671960,-151.0,0.00016019,2]
[395080564,1764408671971,-500.0,0.00016019,2]
[395080565,1764408671980,-1002.32,0.00016032,2]
[395080566,1764408671991,-1462.0,0.00016045,2]
[395080567,1764408672002,-6379.39809852,0.00016047,2]
[395080568,1764408672012,-159.0,0.00016076,2]
[395080569,1764408672022,-13001.16482577,0.000161,2]
[395080570,1764408672031,-621.0,0.00016101,2]
[395080571,1764408672041,-1816.0,0.00016106,2]
[395080572,1764408672052,-343.53785786,0.00016109,2]
[395080573,1764408672061,-150.0,0.0001611,2]
[395080574,1764408672071,-150.0,0.0001611,2]
[395080575,1764408672080,-265.58661555,0.0001611,2]
[395080576,1764408672090,-1154.0,0.0001611,2]
[395080577,1764408672099,-500.0,0.0001611,2]
[395080578,1764408672109,-500.0,0.0001611,2]
[395080579,1764408672119,-1471.0,0.0001611,2]
[395080580,1764408672128,-1008.0,0.0001611,2]
[395080581,1764408672138,-500.0,0.0001611,2]
[395080582,1764408672147,-735.0,0.0001611,2]
[395080583,1764408672157,-500.0,0.0001611,2]
[395080584,1764408672167,-150.0,0.0001611,2]
[395080585,1764408672177,-500.0,0.0001611,2]
[395080586,1764408672187,-500.0,0.0001611,2]
[395080587,1764408672331,-500.0,0.0001611,2]
[395080588,1764408672340,-500.0,0.0001611,2]
[395080589,1764408672350,-500.0,0.0001611,2]
[395080590,1764408672359,-500.0,0.0001611,2]
[395080591,1764408672368,-250.0,0.00016112,2]
[395080592,1764408672378,-200.0,0.00016112,2]
[395080593,1764408672387,-150.728,0.00016112,2]
[395080594,1764408672396,-250.0,0.00016112,2]
[395080595,1764408672406,-150.129,0.00016112,2]
[395080596,1764408672415,-151.048,0.00016112,2]
[395080597,1764408672424,-189.685,0.00016112,2]
[395080598,1764408672433,-210.74,0.00016112,2]
[395080599,1764408672443,-250.0,0.00016112,2]
[395080600,1764408672452,-150.0,0.00016112,2]
[395080601,1764408672461,-224.103,0.00016112,2]
[395080602,1764408672470,-163.0,0.00016112,2]
[395080603,1764408672479,-1475.0,0.00016137,2]
[395080604,1764408672488,-1482.0,0.00016152,2]
[395080605,1764408672498,-8609.96436146,0.00016163,2]
[395080606,1764408672507,-356.0,0.00016168,2]
[395080607,1764408672516,-6379.39809852,0.00016189,2]
[395080608,1764408672525,-669.83922,0.0001619,2]
[395080609,1764408672534,-224.0,0.00016199,2]
[395080610,1764408672543,-261.3167003,0.000162,2]
[395080611,1764408672552,-72987.38233781,0.000162,5]
[395080612,1764408672561,-150.0,0.000162,2]
[395080613,1764408672570,-190.91855774,0.000162,2]
[395080614,1764408672579,-1033.0,0.00016229,2]
[395080615,1764408672588,-621.0,0.0001623,2]
[395080616,1764408672598,-150.0,0.00016247,2]
[395080617,1764408672607,-150.0,0.00016247,2]
[395080618,1764408672616,-1154.0,0.00016247,2]
[395080619,1764408672625,-500.0,0.00016247,2]
[395080620,1764408672634,-223.55694152,0.00016247,2]
[395080621,1764408672643,-1471.0,0.00016247,2]